[Event "*** Titled Tuesday Blitz"]
[Site "Chess.com"]
[Date "2019.02.05"]
[Round "7"]
[White "Romn69"]
[Black "Jenia84"]
[Result "1/2-1/2"]
[WhiteElo "2257"]
[BlackElo "2207"]
[TimeControl "180+2"]
[EndTime "14:41:34 PST"]
[Termination "Game drawn by repetition"]

1. d4 {[%clk 0:02:59.5]} 1... Nf6 {[%clk 0:02:59.9]} 2. Nf3 {[%clk 0:03:00.8]}
2... e6 {[%clk 0:03:01.1]} 3. g3 {[%clk 0:03:01.3]} 3... b6 {[%clk 0:03:02.4]}
4. Bg2 {[%clk 0:03:02.1]} 4... Bb7 {[%clk 0:03:03.9]} 5. O-O {[%clk 0:03:03]}
5... Be7 {[%clk 0:03:04.4]} 6. c4 {[%clk 0:03:03.8]} 6... O-O {[%clk 0:03:05.6]}
7. d5 {[%clk 0:03:04.9]} 7... exd5 {[%clk 0:03:01.3]} 8. Nh4 {[%clk 0:03:05.9]}
8... c6 {[%clk 0:02:58.9]} 9. cxd5 {[%clk 0:03:06.6]} 9... Nxd5 {[%clk
0:02:58.2]} 10. Nf5 {[%clk 0:03:07.1]} 10... Nc7 {[%clk 0:02:53.1]} 11. e4
{[%clk 0:03:07.2]} 11... d5 {[%clk 0:02:53]} 12. Nc3 {[%clk 0:03:07.7]} 12...
Bf6 {[%clk 0:02:47.3]} 13. Bf4 {[%clk 0:03:00.8]} 13... Nba6 {[%clk 0:02:40.7]}
14. Re1 {[%clk 0:02:23.5]} 14... Ne6 {[%clk 0:02:18.2]} 15. Bd6 {[%clk
0:02:21.2]} 15... Re8 {[%clk 0:02:17.3]} 16. e5 {[%clk 0:02:19.1]} 16... Bg5
{[%clk 0:02:06.1]} 17. f4 {[%clk 0:02:15.1]} 17... Bh6 {[%clk 0:02:04.1]} 18.
Nxh6+ {[%clk 0:02:14.1]} 18... gxh6 {[%clk 0:02:05]} 19. f5 {[%clk 0:02:14.4]}
19... Nec5 {[%clk 0:01:47.9]} 20. f6 {[%clk 0:01:37.8]} 20... Kh8 {[%clk
0:01:46.8]} 21. Qd2 {[%clk 0:01:38.4]} 21... Rg8 {[%clk 0:01:45.4]} 22. Qxh6
{[%clk 0:01:38.4]} 22... Rg6 {[%clk 0:01:44.1]} 23. Qh4 {[%clk 0:01:31.4]} 23...
Nd7 {[%clk 0:01:37.8]} 24. Bh3 {[%clk 0:01:14.1]} 24... Nxf6 {[%clk 0:01:35.4]}
25. Bf5 {[%clk 0:01:14.1]} 25... Ne8 {[%clk 0:00:51.6]} 26. Qxd8 {[%clk
0:00:54.7]} 26... Rxd8 {[%clk 0:00:48.6]} 27. Bxg6 {[%clk 0:00:55.1]} 27... hxg6
{[%clk 0:00:46.7]} 28. Be7 {[%clk 0:00:53.3]} 28... Rd7 {[%clk 0:00:45.6]} 29.
Bf6+ {[%clk 0:00:54.2]} 29... Nxf6 {[%clk 0:00:39]} 30. exf6 {[%clk 0:00:54.6]}
30... Nc7 {[%clk 0:00:35.4]} 31. Rad1 {[%clk 0:00:24.9]} 31... Ne6 {[%clk
0:00:33]} 32. h4 {[%clk 0:00:25.2]} 32... Kh7 {[%clk 0:00:29.4]} 33. Ne4 {[%clk
0:00:25.4]} 33... Kh6 {[%clk 0:00:21.3]} 34. Ng5 {[%clk 0:00:21.4]} 34... Nxg5
{[%clk 0:00:17.5]} 35. hxg5+ {[%clk 0:00:22]} 35... Kxg5 {[%clk 0:00:18.9]} 36.
Re7 {[%clk 0:00:22.9]} 36... Bc8 {[%clk 0:00:20.4]} 37. Rxd7 {[%clk 0:00:22]}
37... Bxd7 {[%clk 0:00:21.4]} 38. a3 {[%clk 0:00:20.4]} 38... Kxf6 {[%clk
0:00:22]} 39. Kf2 {[%clk 0:00:21.1]} 39... Bf5 {[%clk 0:00:22.8]} 40. Ke3 {[%clk
0:00:21.5]} 40... Be4 {[%clk 0:00:24.2]} 41. Kf4 {[%clk 0:00:18.9]} 41... Ke6
{[%clk 0:00:25.3]} 42. Rd2 {[%clk 0:00:19.6]} 42... f5 {[%clk 0:00:26.4]} 43.
Rh2 {[%clk 0:00:20.1]} 43... c5 {[%clk 0:00:26.8]} 44. Rh7 {[%clk 0:00:20.3]}
44... d4 {[%clk 0:00:24.1]} 45. Rxa7 {[%clk 0:00:19.8]} 45... c4 {[%clk
0:00:22.4]} 46. Ra6 {[%clk 0:00:19.1]} 46... c3 {[%clk 0:00:22.2]} 47. Rxb6+
{[%clk 0:00:18.6]} 47... Kd5 {[%clk 0:00:22.7]} 48. bxc3 {[%clk 0:00:18.6]}
48... dxc3 {[%clk 0:00:23.3]} 49. Ke3 {[%clk 0:00:19.4]} 49... Kc4 {[%clk
0:00:22.2]} 50. Rb8 {[%clk 0:00:20.1]} 50... c2 {[%clk 0:00:20.6]} 51. Kd2
{[%clk 0:00:18.9]} 51... g5 {[%clk 0:00:21.8]} 52. Rg8 {[%clk 0:00:18.4]} 52...
g4 {[%clk 0:00:21.6]} 53. Kc1 {[%clk 0:00:18.3]} 53... Kb3 {[%clk 0:00:22.3]}
54. Rb8+ {[%clk 0:00:17.5]} 54... Kxa3 {[%clk 0:00:23]} 55. Rb6 {[%clk
0:00:17.9]} 55... Ka4 {[%clk 0:00:23.8]} 56. Rb8 {[%clk 0:00:17.8]} 56... Ka5
{[%clk 0:00:24.7]} 57. Rb2 {[%clk 0:00:15.8]} 57... Ka6 {[%clk 0:00:24.9]} 58.
Rb4 {[%clk 0:00:16.1]} 58... Ka5 {[%clk 0:00:25.6]} 59. Rb8 {[%clk 0:00:16.4]}
59... Ka6 {[%clk 0:00:23.6]} 60. Rb4 {[%clk 0:00:16.4]} 60... Ka5 {[%clk
0:00:24.4]} 61. Rb8 {[%clk 0:00:16.7]} 61... Ka6 {[%clk 0:00:21.5]} 62. Rb4
{[%clk 0:00:17]} 1/2-1/2

[Event "*** Titled Tuesday Blitz"]
[Site "Chess.com"]
[Date "2019.02.05"]
[Round "7"]
[White "idvidal"]
[Black "champ2005"]
[Result "0-1"]
[WhiteElo "2466"]
[BlackElo "2603"]
[TimeControl "180+2"]
[EndTime "14:41:39 PST"]
[Termination "champ2005 won by resignation"]

1. c4 {[%clk 0:03:01.9]} 1... e5 {[%clk 0:03:00.7]} 2. Nc3 {[%clk 0:03:02.4]}
2... Nf6 {[%clk 0:03:00.6]} 3. g3 {[%clk 0:03:03.3]} 3... c6 {[%clk 0:02:59.7]}
4. d4 {[%clk 0:03:03.6]} 4... e4 {[%clk 0:02:58.6]} 5. d5 {[%clk 0:03:01.8]}
5... Bc5 {[%clk 0:02:46]} 6. e3 {[%clk 0:01:54.9]} 6... O-O {[%clk 0:02:45.5]}
7. Nge2 {[%clk 0:01:50.3]} 7... d6 {[%clk 0:02:34.5]} 8. Bg2 {[%clk 0:01:50.3]}
8... Qe7 {[%clk 0:02:31.3]} 9. O-O {[%clk 0:01:47.3]} 9... Bf5 {[%clk
0:02:30.2]} 10. Nd4 {[%clk 0:01:43]} 10... Bg6 {[%clk 0:02:31.1]} 11. Rb1 {[%clk
0:01:43.8]} 11... cxd5 {[%clk 0:02:30.2]} 12. Nxd5 {[%clk 0:01:25.9]} 12... Nxd5
{[%clk 0:02:30.7]} 13. cxd5 {[%clk 0:01:27.7]} 13... Nd7 {[%clk 0:02:32.3]} 14.
b4 {[%clk 0:01:19]} 14... Bb6 {[%clk 0:02:33.3]} 15. a4 {[%clk 0:01:10.7]} 15...
a6 {[%clk 0:02:34.2]} 16. a5 {[%clk 0:01:08.6]} 16... Ba7 {[%clk 0:02:35.4]} 17.
h4 {[%clk 0:01:01.4]} 17... h5 {[%clk 0:02:26]} 18. Bb2 {[%clk 0:00:52.1]} 18...
Ne5 {[%clk 0:02:26.2]} 19. Bh3 {[%clk 0:00:44.8]} 19... Nd3 {[%clk 0:02:12.2]}
20. Ba1 {[%clk 0:00:42]} 20... Ne5 {[%clk 0:01:53.1]} 21. Rc1 {[%clk 0:00:26.8]}
21... Rad8 {[%clk 0:01:26.9]} 22. Kh1 {[%clk 0:00:21.4]} 22... Nd3 {[%clk
0:01:19.5]} 23. Rc4 {[%clk 0:00:16.5]} 23... Ne5 {[%clk 0:00:49.8]} 24. Rc2
{[%clk 0:00:17.4]} 24... Qf6 {[%clk 0:00:46.5]} 25. Ne2 {[%clk 0:00:11.4]} 25...
Bf5 {[%clk 0:00:45.4]} 26. Bxf5 {[%clk 0:00:12.1]} 26... Qxf5 {[%clk 0:00:46.8]}
27. Nf4 {[%clk 0:00:12.1]} 27... Nf3 {[%clk 0:00:43.5]} 28. Kg2 {[%clk
0:00:12.4]} 28... Qg4 {[%clk 0:00:42.6]} 29. Rc4 {[%clk 0:00:12.2]} 29... Nxh4+
{[%clk 0:00:43.1]} 30. Kh1 {[%clk 0:00:13]} 30... Nf3 {[%clk 0:00:34.5]} 31.
Rxe4 {[%clk 0:00:10.8]} 31... h4 {[%clk 0:00:30]} 32. Kg2 {[%clk 0:00:11]} 32...
h3+ {[%clk 0:00:28.6]} 33. Nxh3 {[%clk 0:00:11.9]} 33... Nh4+ {[%clk 0:00:20.4]}
34. Kh2 {[%clk 0:00:07.5]} 34... Qxe4 {[%clk 0:00:21.5]} 35. gxh4 {[%clk
0:00:09]} 35... Qxh4 {[%clk 0:00:19.9]} 36. Rg1 {[%clk 0:00:09.6]} 36... f6
{[%clk 0:00:19]} 37. Rg4 {[%clk 0:00:09.4]} 37... Qh7 {[%clk 0:00:18.5]} 38. Qf3
{[%clk 0:00:06.6]} 38... Rde8 {[%clk 0:00:16.6]} 39. Kg2 {[%clk 0:00:07.4]}
39... Re7 {[%clk 0:00:12.4]} 40. Nf4 {[%clk 0:00:08.5]} 40... Qe4 {[%clk
0:00:12.5]} 41. Ne6 {[%clk 0:00:08.3]} 41... Qxf3+ {[%clk 0:00:11]} 42. Kxf3
{[%clk 0:00:10.2]} 42... Rc8 {[%clk 0:00:10.6]} 43. Kg2 {[%clk 0:00:09.8]} 43...
Rf7 {[%clk 0:00:10.7]} 44. Bd4 {[%clk 0:00:09.6]} 44... Rc4 {[%clk 0:00:09.1]}
45. Kf3 {[%clk 0:00:05.8]} 45... Bxd4 {[%clk 0:00:10.2]} 46. Rxd4 {[%clk
0:00:06.6]} 46... Rxd4 {[%clk 0:00:11.6]} 47. Nxd4 {[%clk 0:00:07.1]} 47... Rc7
{[%clk 0:00:12.7]} 48. Nf5 {[%clk 0:00:08.6]} 48... Rd7 {[%clk 0:00:13.4]} 49.
Ke4 {[%clk 0:00:09.2]} 49... g6 {[%clk 0:00:14.4]} 50. Nd4 {[%clk 0:00:10.3]}
50... Rc7 {[%clk 0:00:15.7]} 51. Kd3 {[%clk 0:00:11.1]} 51... Kf7 {[%clk
0:00:16.5]} 52. Ne6 {[%clk 0:00:12.2]} 52... Rc1 {[%clk 0:00:17.2]} 53. Nd8+
{[%clk 0:00:12.3]} 53... Ke7 {[%clk 0:00:18.4]} 54. Nxb7 {[%clk 0:00:14.2]}
54... Rc8 {[%clk 0:00:18.5]} 55. b5 {[%clk 0:00:14.9]} 55... axb5 {[%clk
0:00:19.7]} 56. a6 {[%clk 0:00:16.4]} 56... Ra8 {[%clk 0:00:21.1]} 57. Na5
{[%clk 0:00:16.7]} 57... Rxa6 {[%clk 0:00:22.4]} 58. Nc6+ {[%clk 0:00:18.6]}
58... Kf7 {[%clk 0:00:19.5]} 59. f4 {[%clk 0:00:14.4]} 59... g5 {[%clk
0:00:19.7]} 60. fxg5 {[%clk 0:00:14.4]} 60... fxg5 {[%clk 0:00:21.6]} 61. Ke4
{[%clk 0:00:14.5]} 61... b4 {[%clk 0:00:22]} 62. Kf5 {[%clk 0:00:10.7]} 62... b3
{[%clk 0:00:23.2]} 0-1

[Event "*** Titled Tuesday Blitz"]
[Site "Chess.com"]
[Date "2019.02.05"]
[Round "7"]
[White "ChessMavenYeti"]
[Black "CM_Perligero"]
[Result "1-0"]
[WhiteElo "2243"]
[BlackElo "2203"]
[TimeControl "180+2"]
[EndTime "14:41:46 PST"]
[Termination "ChessMavenYeti won by resignation"]

1. d4 {[%clk 0:03:01.9]} 1... Nf6 {[%clk 0:02:58.9]} 2. c4 {[%clk 0:03:03.3]}
2... d5 {[%clk 0:02:56.1]} 3. cxd5 {[%clk 0:03:01.5]} 3... Qxd5 {[%clk
0:02:55.3]} 4. Nc3 {[%clk 0:03:01.1]} 4... Qa5 {[%clk 0:02:52.5]} 5. Bd2 {[%clk
0:02:59.3]} 5... c6 {[%clk 0:02:53.3]} 6. e4 {[%clk 0:02:59.2]} 6... e5 {[%clk
0:02:45]} 7. Nd5 {[%clk 0:02:57.4]} 7... Qd8 {[%clk 0:02:41.2]} 8. Nxf6+ {[%clk
0:02:57.5]} 8... Qxf6 {[%clk 0:02:40.7]} 9. dxe5 {[%clk 0:02:58.3]} 9... Qxe5
{[%clk 0:02:41.9]} 10. Nf3 {[%clk 0:02:57.6]} 10... Qxe4+ {[%clk 0:02:41.5]} 11.
Be2 {[%clk 0:02:58.6]} 11... Bc5 {[%clk 0:02:37.1]} 12. O-O {[%clk 0:02:59.5]}
12... O-O {[%clk 0:02:36.4]} 13. Ng5 {[%clk 0:02:59.2]} 13... Qg6 {[%clk
0:02:32.7]} 14. Bh5 {[%clk 0:02:58.2]} 14... Qd6 {[%clk 0:02:24.8]} 15. Qc2
{[%clk 0:02:56.2]} 15... g6 {[%clk 0:02:17.9]} 16. Ne4 {[%clk 0:02:54.3]} 16...
Qe5 {[%clk 0:02:05.1]} 17. Bc3 {[%clk 0:02:53]} 17... Bd4 {[%clk 0:01:59.3]} 18.
Bf3 {[%clk 0:02:43.4]} 18... Bxc3 {[%clk 0:01:58.6]} 19. Nxc3 {[%clk 0:02:40.1]}
19... Bf5 {[%clk 0:01:59.3]} 20. Qb3 {[%clk 0:02:39.9]} 20... b6 {[%clk
0:01:44.2]} 21. Rfe1 {[%clk 0:02:37.6]} 21... Qf6 {[%clk 0:01:43.8]} 22. Rad1
{[%clk 0:02:35]} 22... Nd7 {[%clk 0:01:43]} 23. Qa3 {[%clk 0:01:58.7]} 23... Ne5
{[%clk 0:01:39.6]} 24. Be4 {[%clk 0:01:39.6]} 24... Bg4 {[%clk 0:01:10.2]} 25.
Rd6 {[%clk 0:01:36.5]} 25... Qg5 {[%clk 0:01:03.3]} 26. Kh1 {[%clk 0:01:20]}
26... Nc4 {[%clk 0:00:58.5]} 27. Qb4 {[%clk 0:01:16.7]} 27... Nxd6 {[%clk
0:00:56.7]} 28. Qxd6 {[%clk 0:01:18.2]} 28... Rad8 {[%clk 0:00:50.1]} 29. Qxc6
{[%clk 0:01:16.1]} 29... Qd2 {[%clk 0:00:47.6]} 30. Rf1 {[%clk 0:01:11.9]} 30...
Qxb2 {[%clk 0:00:42.3]} 31. Nd5 {[%clk 0:01:11.3]} 31... Be6 {[%clk 0:00:30.4]}
32. Nf4 {[%clk 0:01:03.3]} 32... Qe5 {[%clk 0:00:18.1]} 33. g3 {[%clk 0:00:54]}
33... g5 {[%clk 0:00:17.1]} 34. Nh5 {[%clk 0:00:50.9]} 34... Bd5 {[%clk
0:00:14.2]} 35. Bxd5 {[%clk 0:00:48.7]} 35... Qxd5+ {[%clk 0:00:12.9]} 36. Qxd5
{[%clk 0:00:49.6]} 36... Rxd5 {[%clk 0:00:13.8]} 37. Nf6+ {[%clk 0:00:51.1]}
37... Kg7 {[%clk 0:00:15.1]} 38. Nxd5 {[%clk 0:00:52.9]} 38... Rd8 {[%clk
0:00:16]} 39. Nc3 {[%clk 0:00:52]} 39... Rd3 {[%clk 0:00:14.6]} 40. Rc1 {[%clk
0:00:51.2]} 40... Rd2 {[%clk 0:00:11.6]} 41. Kg2 {[%clk 0:00:52.1]} 41... a6
{[%clk 0:00:12.8]} 42. Kf3 {[%clk 0:00:52.8]} 42... b5 {[%clk 0:00:12.7]} 43.
Ke3 {[%clk 0:00:53.8]} 43... Rb2 {[%clk 0:00:13.1]} 44. Rb1 {[%clk 0:00:47.3]}
44... Rc2 {[%clk 0:00:14]} 45. Rb3 {[%clk 0:00:45.2]} 45... f5 {[%clk
0:00:11.3]} 46. a3 {[%clk 0:00:44.6]} 46... Kg6 {[%clk 0:00:10.9]} 47. Ne2
{[%clk 0:00:44.1]} 47... Rc4 {[%clk 0:00:09.5]} 48. f4 {[%clk 0:00:42.6]} 48...
Re4+ {[%clk 0:00:09.4]} 49. Kf3 {[%clk 0:00:42.7]} 49... g4+ {[%clk 0:00:10.1]}
50. Kf2 {[%clk 0:00:42.5]} 50... h5 {[%clk 0:00:10.7]} 51. Ke1 {[%clk
0:00:40.4]} 51... Rc4 {[%clk 0:00:10.4]} 52. Kd2 {[%clk 0:00:41.4]} 52... Re4
{[%clk 0:00:10.1]} 53. Re3 {[%clk 0:00:41.7]} 53... Ra4 {[%clk 0:00:09.2]} 54.
Re6+ {[%clk 0:00:36]} 54... Kf7 {[%clk 0:00:09.2]} 55. Re3 {[%clk 0:00:37.9]}
55... Kf6 {[%clk 0:00:10.1]} 56. Rc3 {[%clk 0:00:39]} 56... Kg6 {[%clk
0:00:09.1]} 57. Kd3 {[%clk 0:00:40]} 57... Re4 {[%clk 0:00:08.9]} 58. Rc6+
{[%clk 0:00:39.6]} 58... Kf7 {[%clk 0:00:09.4]} 59. Rxa6 {[%clk 0:00:41]} 59...
b4 {[%clk 0:00:09.8]} 60. a4 {[%clk 0:00:36.8]} 60... b3 {[%clk 0:00:10.9]} 61.
a5 {[%clk 0:00:37.3]} 61... Rb4 {[%clk 0:00:10.4]} 62. Rb6 {[%clk 0:00:37.3]}
62... Ra4 {[%clk 0:00:07.9]} 63. a6 {[%clk 0:00:37.2]} 63... b2 {[%clk
0:00:09.2]} 64. Nc3 {[%clk 0:00:38]} 64... Ra3 {[%clk 0:00:08.7]} 65. Kc2 {[%clk
0:00:38]} 65... Ke7 {[%clk 0:00:09]} 66. Kxb2 {[%clk 0:00:38.8]} 66... Ra5
{[%clk 0:00:09.4]} 67. Kb3 {[%clk 0:00:38.8]} 67... Kd7 {[%clk 0:00:09.9]} 68.
Kb4 {[%clk 0:00:39.5]} 1-0

[Event "*** Titled Tuesday Blitz"]
[Site "Chess.com"]
[Date "2019.02.05"]
[Round "7"]
[White "GameOverBro"]
[Black "WPWPWP-2015"]
[Result "1/2-1/2"]
[WhiteElo "2521"]
[BlackElo "2335"]
[TimeControl "180+2"]
[EndTime "14:42:17 PST"]
[Termination "Game drawn - insufficient material"]

1. e4 {[%clk 0:03:01.9]} 1... e5 {[%clk 0:02:59.5]} 2. Nf3 {[%clk 0:03:03]} 2...
Nc6 {[%clk 0:03:00.8]} 3. Bb5 {[%clk 0:03:04.2]} 3... Nf6 {[%clk 0:03:01.3]} 4.
d4 {[%clk 0:03:04.9]} 4... exd4 {[%clk 0:02:55.5]} 5. O-O {[%clk 0:03:04.6]}
5... a6 {[%clk 0:02:55.9]} 6. Ba4 {[%clk 0:03:05.3]} 6... b5 {[%clk 0:02:44.3]}
7. Bb3 {[%clk 0:03:05.9]} 7... d6 {[%clk 0:02:34.3]} 8. Ng5 {[%clk 0:03:06.1]}
8... Ne5 {[%clk 0:02:34.8]} 9. f4 {[%clk 0:03:06.8]} 9... Nc4 {[%clk 0:02:35.2]}
10. Bxc4 {[%clk 0:03:08.2]} 10... bxc4 {[%clk 0:02:35.9]} 11. Qxd4 {[%clk
0:03:09.9]} 11... h6 {[%clk 0:02:27.1]} 12. Nf3 {[%clk 0:03:10.5]} 12... Be6
{[%clk 0:02:26.5]} 13. Nc3 {[%clk 0:03:08.9]} 13... Be7 {[%clk 0:02:24.2]} 14.
f5 {[%clk 0:03:08.8]} 14... c5 {[%clk 0:02:15.8]} 15. Qf2 {[%clk 0:02:54.9]}
15... Bd7 {[%clk 0:02:15]} 16. e5 {[%clk 0:02:46]} 16... Ng4 {[%clk 0:02:01.8]}
17. Qg3 {[%clk 0:02:42.6]} 17... Nxe5 {[%clk 0:02:01.7]} 18. Nxe5 {[%clk
0:02:37]} 18... dxe5 {[%clk 0:02:00.9]} 19. Qxg7 {[%clk 0:02:18.6]} 19... Bf6
{[%clk 0:02:00.2]} 20. Qg4 {[%clk 0:02:17.9]} 20... Bc6 {[%clk 0:01:48]} 21.
Qxc4 {[%clk 0:02:07.8]} 21... Qd4+ {[%clk 0:01:29.8]} 22. Qxd4 {[%clk
0:02:07.2]} 22... cxd4 {[%clk 0:01:30.5]} 23. Ne2 {[%clk 0:01:57.4]} 23... Rg8
{[%clk 0:01:02.7]} 24. Ng3 {[%clk 0:01:50.5]} 24... h5 {[%clk 0:01:03.1]} 25.
Re1 {[%clk 0:01:46.9]} 25... Rg4 {[%clk 0:00:52.2]} 26. Re2 {[%clk 0:01:11.6]}
26... h4 {[%clk 0:00:49.7]} 27. Nh5 {[%clk 0:01:06.5]} 27... Ke7 {[%clk
0:00:40.6]} 28. h3 {[%clk 0:00:41.4]} 28... Re4 {[%clk 0:00:35]} 29. Rxe4 {[%clk
0:00:22]} 29... Bxe4 {[%clk 0:00:35.3]} 30. Nxf6 {[%clk 0:00:22]} 30... Kxf6
{[%clk 0:00:35.9]} 31. c3 {[%clk 0:00:22.5]} 31... Rg8 {[%clk 0:00:22.3]} 32.
cxd4 {[%clk 0:00:22.8]} 32... Rxg2+ {[%clk 0:00:22.5]} 33. Kf1 {[%clk
0:00:24.1]} 33... exd4 {[%clk 0:00:23]} 34. b4 {[%clk 0:00:20.8]} 34... Kxf5
{[%clk 0:00:21.3]} 35. a4 {[%clk 0:00:21.3]} 35... Rc2 {[%clk 0:00:21.5]} 36. b5
{[%clk 0:00:22.1]} 36... axb5 {[%clk 0:00:22.2]} 37. axb5 {[%clk 0:00:24]} 37...
Bd3+ {[%clk 0:00:22.4]} 38. Ke1 {[%clk 0:00:25.3]} 38... Bxb5 {[%clk 0:00:22.7]}
39. Bd2 {[%clk 0:00:26.4]} 39... Bd7 {[%clk 0:00:20.4]} 40. Ra4 {[%clk
0:00:25.9]} 40... Ke4 {[%clk 0:00:21]} 41. Ra7 {[%clk 0:00:23.2]} 41... Be6
{[%clk 0:00:20.3]} 42. Ra5 {[%clk 0:00:24]} 42... Kd3 {[%clk 0:00:17.3]} 43. Bg5
{[%clk 0:00:19.5]} 43... Rh2 {[%clk 0:00:13.2]} 44. Bxh4 {[%clk 0:00:16.5]}
44... Ke3 {[%clk 0:00:10.7]} 45. Ra3+ {[%clk 0:00:14.4]} 45... d3 {[%clk
0:00:10.9]} 46. Bg5+ {[%clk 0:00:14.5]} 46... Ke4 {[%clk 0:00:11.7]} 47. h4
{[%clk 0:00:15]} 47... Re2+ {[%clk 0:00:08.8]} 48. Kd1 {[%clk 0:00:12.8]} 48...
Bg4 {[%clk 0:00:07.8]} 49. Ra4+ {[%clk 0:00:14.1]} 49... Kf3 {[%clk 0:00:07.7]}
50. Rf4+ {[%clk 0:00:15.5]} 50... Kg3 {[%clk 0:00:08.9]} 51. Kc1 {[%clk
0:00:09.6]} 51... Rc2+ {[%clk 0:00:05.2]} 52. Kb1 {[%clk 0:00:10.2]} 52... f5
{[%clk 0:00:05.7]} 53. Rd4 {[%clk 0:00:10.2]} 53... Be2 {[%clk 0:00:04.7]} 54.
h5 {[%clk 0:00:10.4]} 54... Rc8 {[%clk 0:00:03.6]} 55. h6 {[%clk 0:00:11.2]}
55... Rg8 {[%clk 0:00:04.4]} 56. Bf4+ {[%clk 0:00:12.4]} 56... Kf3 {[%clk
0:00:04.3]} 57. h7 {[%clk 0:00:12.1]} 57... Rh8 {[%clk 0:00:05.2]} 58. Kc1
{[%clk 0:00:11.7]} 58... Rxh7 {[%clk 0:00:05.9]} 59. Bg5 {[%clk 0:00:10.4]}
59... Rh1+ {[%clk 0:00:06.3]} 60. Kd2 {[%clk 0:00:11.3]} 60... Rd1+ {[%clk
0:00:06.6]} 61. Kc3 {[%clk 0:00:12.9]} 61... Kg3 {[%clk 0:00:05.2]} 62. Bf4+
{[%clk 0:00:13.6]} 62... Kg2 {[%clk 0:00:05.8]} 63. Bd2 {[%clk 0:00:14.9]} 63...
Ra1 {[%clk 0:00:06.1]} 64. Rf4 {[%clk 0:00:15.8]} 64... Ra2 {[%clk 0:00:06.8]}
65. Kd4 {[%clk 0:00:17.2]} 65... Ra4+ {[%clk 0:00:07.3]} 66. Ke3 {[%clk
0:00:17.7]} 66... Rxf4 {[%clk 0:00:06.8]} 67. Kxf4 {[%clk 0:00:19.6]} 67... Kf2
{[%clk 0:00:08]} 68. Kxf5 {[%clk 0:00:20.1]} 68... Bf3 {[%clk 0:00:08.2]} 69.
Kf4 {[%clk 0:00:20.4]} 69... Ke2 {[%clk 0:00:09.4]} 70. Bb4 {[%clk 0:00:19.4]}
70... Bd5 {[%clk 0:00:10.6]} 71. Ba5 {[%clk 0:00:20.3]} 71... Bc4 {[%clk
0:00:12]} 72. Bb4 {[%clk 0:00:21.4]} 72... Bb5 {[%clk 0:00:13.4]} 73. Ba5 {[%clk
0:00:22.6]} 73... Ba6 {[%clk 0:00:14.3]} 74. Bb4 {[%clk 0:00:23.5]} 74... d2
{[%clk 0:00:15.9]} 75. Bxd2 {[%clk 0:00:24.3]} 75... Kxd2 {[%clk 0:00:17.4]}
1/2-1/2

[Event "*** Titled Tuesday Blitz"]
[Site "Chess.com"]
[Date "2019.02.05"]
[Round "7"]
[White "AbdAlAgathos"]
[Black "matiss90"]
[Result "1-0"]
[WhiteElo "2343"]
[BlackElo "2456"]
[TimeControl "180+2"]
[EndTime "14:42:18 PST"]
[Termination "AbdAlAgathos won by resignation"]

1. e4 {[%clk 0:03:01.9]} 1... c5 {[%clk 0:02:59.8]} 2. Nf3 {[%clk 0:03:01.1]}
2... d6 {[%clk 0:03:00.9]} 3. c3 {[%clk 0:03:01.9]} 3... Nf6 {[%clk 0:03:01.7]}
4. Be2 {[%clk 0:03:02.5]} 4... g6 {[%clk 0:03:02.6]} 5. O-O {[%clk 0:03:02.8]}
5... Bg7 {[%clk 0:03:03.9]} 6. Bb5+ {[%clk 0:03:04.4]} 6... Nc6 {[%clk 0:03:03]}
7. Re1 {[%clk 0:03:04.5]} 7... O-O {[%clk 0:03:03.9]} 8. h3 {[%clk 0:03:03.9]}
8... e5 {[%clk 0:03:04.9]} 9. d3 {[%clk 0:02:59.8]} 9... a6 {[%clk 0:03:05.6]}
10. Ba4 {[%clk 0:02:56.6]} 10... Nh5 {[%clk 0:03:04.8]} 11. Nbd2 {[%clk
0:02:22.2]} 11... h6 {[%clk 0:03:02.2]} 12. Nf1 {[%clk 0:02:20.6]} 12... Kh7
{[%clk 0:03:01.4]} 13. Ne3 {[%clk 0:02:11.6]} 13... Nf4 {[%clk 0:03:00.8]} 14.
Nd5 {[%clk 0:02:09.7]} 14... Nxd5 {[%clk 0:03:01.6]} 15. exd5 {[%clk 0:02:11.6]}
15... Ne7 {[%clk 0:03:02.8]} 16. c4 {[%clk 0:02:11.2]} 16... f5 {[%clk
0:03:03.3]} 17. Rb1 {[%clk 0:02:00.7]} 17... f4 {[%clk 0:03:03.2]} 18. b4 {[%clk
0:01:53.9]} 18... b6 {[%clk 0:02:41.5]} 19. Nd2 {[%clk 0:01:43.2]} 19... Nf5
{[%clk 0:02:19]} 20. Ne4 {[%clk 0:01:43.7]} 20... Nd4 {[%clk 0:02:12.1]} 21. Bb2
{[%clk 0:01:34.7]} 21... f3 {[%clk 0:02:11]} 22. Bxd4 {[%clk 0:01:34.3]} 22...
exd4 {[%clk 0:02:11.8]} 23. g3 {[%clk 0:01:18.3]} 23... Bxh3 {[%clk 0:02:10.9]}
24. bxc5 {[%clk 0:01:11.5]} 24... bxc5 {[%clk 0:02:06.2]} 25. Rb7 {[%clk
0:01:11.5]} 25... Bc8 {[%clk 0:02:01.9]} 26. Rb2 {[%clk 0:00:51.9]} 26... Ra7
{[%clk 0:02:02.6]} 27. Rb8 {[%clk 0:00:45.7]} 27... Be5 {[%clk 0:01:51.3]} 28.
Qb1 {[%clk 0:00:34.2]} 28... Raf7 {[%clk 0:01:32]} 29. Qb6 {[%clk 0:00:29.7]}
29... Qxb6 {[%clk 0:01:23.5]} 30. Rxb6 {[%clk 0:00:31.6]} 30... Bf5 {[%clk
0:01:24.6]} 31. Rxa6 {[%clk 0:00:26.3]} 31... Bxe4 {[%clk 0:01:09]} 32. Rxe4
{[%clk 0:00:28.2]} 32... h5 {[%clk 0:01:07.5]} 33. Bc6 {[%clk 0:00:18.2]} 33...
Bxg3 {[%clk 0:01:07.5]} 34. fxg3 {[%clk 0:00:18]} 34... f2+ {[%clk 0:01:08.7]}
35. Kf1 {[%clk 0:00:19.1]} 35... Rf3 {[%clk 0:01:09.8]} 36. Re2 {[%clk
0:00:18.3]} 36... Kh6 {[%clk 0:00:50.2]} 37. Bd7 {[%clk 0:00:18.8]} 37... Kg5
{[%clk 0:00:25.4]} 38. Be6 {[%clk 0:00:15.7]} 38... h4 {[%clk 0:00:26.2]} 39.
gxh4+ {[%clk 0:00:13.1]} 39... Kxh4 {[%clk 0:00:26.7]} 40. Rxd6 {[%clk
0:00:13.3]} 40... R8f6 {[%clk 0:00:18]} 41. Rd8 {[%clk 0:00:12.9]} 41... Kg3
{[%clk 0:00:18.4]} 42. Rh8 {[%clk 0:00:13.6]} 42... Kf4 {[%clk 0:00:09.2]} 43.
Rxf2 {[%clk 0:00:12.4]} 43... Ke3 {[%clk 0:00:10.5]} 44. Rxf3+ {[%clk
0:00:12.9]} 44... Rxf3+ {[%clk 0:00:11.7]} 45. Ke1 {[%clk 0:00:14.1]} 45... Rf6
{[%clk 0:00:04.1]} 46. Rh3+ {[%clk 0:00:11.3]} 46... Kf4 {[%clk 0:00:05]} 47.
Bd7 {[%clk 0:00:08.3]} 47... g5 {[%clk 0:00:03.8]} 48. Rh1 {[%clk 0:00:07.1]}
48... Ke3 {[%clk 0:00:03.8]} 49. Rf1 {[%clk 0:00:06.8]} 49... Rd6 {[%clk
0:00:04.4]} 50. Bf5 {[%clk 0:00:06.6]} 50... Ra6 {[%clk 0:00:03.6]} 51. Kd1
{[%clk 0:00:06]} 51... Rxa2 {[%clk 0:00:04.1]} 52. Re1+ {[%clk 0:00:07.5]} 52...
Kf4 {[%clk 0:00:05.3]} 53. d6 {[%clk 0:00:08.2]} 53... Kxf5 {[%clk 0:00:05.4]}
54. d7 {[%clk 0:00:08.8]} 54... Ra1+ {[%clk 0:00:05.8]} 55. Kc2 {[%clk 0:00:10]}
55... Rxe1 {[%clk 0:00:04.1]} 56. d8=Q {[%clk 0:00:10.7]} 56... Re5 {[%clk
0:00:05]} 57. Qf8+ {[%clk 0:00:07.8]} 57... Kg4 {[%clk 0:00:05.7]} 58. Qg7
{[%clk 0:00:08.2]} 58... Kf5 {[%clk 0:00:05.1]} 59. Qf7+ {[%clk 0:00:07.8]}
59... Kg4 {[%clk 0:00:06.1]} 60. Qf6 {[%clk 0:00:08.1]} 60... Rf5 {[%clk
0:00:06.4]} 61. Qe6 {[%clk 0:00:08]} 61... Kf4 {[%clk 0:00:07]} 62. Qe4+ {[%clk
0:00:08.9]} 62... Kg3 {[%clk 0:00:07.2]} 63. Qxf5 {[%clk 0:00:09.9]} 63... g4
{[%clk 0:00:09.1]} 64. Qxc5 {[%clk 0:00:11.5]} 64... Kh2 {[%clk 0:00:09.8]} 65.
Qxd4 {[%clk 0:00:13.1]} 65... g3 {[%clk 0:00:11.7]} 66. Qh4+ {[%clk 0:00:13.7]}
66... Kg2 {[%clk 0:00:12.6]} 67. c5 {[%clk 0:00:14.3]} 67... Kf3 {[%clk
0:00:13.5]} 68. Qxg3+ {[%clk 0:00:15.5]} 68... Kxg3 {[%clk 0:00:14.3]} 69. c6
{[%clk 0:00:17.4]} 1-0